bitfinex/quotes_SOLUSD_20251013
["timestamp","ask_amount","ask_price","bid_price","bid_amount"]
[1760370868182,0.1041086,197.06,197.05,35.11485409]
[1760370868392,0.1041086,197.06,197.05,25.87485409]
[1760370869303,0.1041086,197.06,197.05,35.11485409]
[1760370869499,0.1041086,197.06,197.05,25.87485409]
[1760370869893,0.1041086,197.06,197.05,35.11485409]
[1760370870091,0.1041086,197.06,197.05,25.87485409]
[1760370871101,0.1041086,197.06,197.05,35.11485409]
[1760370871295,0.1041086,197.06,197.05,25.87485409]
[1760370871809,0.1041086,197.06,197.05,35.11485409]
[1760370872198,0.1041086,197.06,197.05,25.87485409]
[1760370872497,0.1041086,197.06,197.05,35.11485409]
[1760370872695,0.1041086,197.06,197.05,5.07485409]
[1760370872696,0.7841086,197.06,197.05,5.07485409]
[1760370873105,0.1041086,197.06,197.05,5.07485409]
[1760370873806,0.1041086,197.06,197.03,17.76351393]
[1760370874210,0.1041086,197.06,197.04,9.24]
[1760370874399,0.1041086,197.06,197.03,17.76351393]
[1760370874596,0.1041086,197.06,197.04,9.24]
[1760370874794,0.1041086,197.06,197.05,9.24]
[1760370874982,0.1041086,197.06,197.05,20.8]
[1760370875489,0.1041086,197.06,197.05,30.04]
[1760370875697,0.1041086,197.06,197.05,20.8]
[1760370875902,0.1041086,197.06,197.05,35.11485409]
[1760370876111,11.66058381,197.06,197.05,5.07485409]
[1760370876289,11.66058381,197.06,197.05,14.31485409]
[1760370876611,10.87647521,197.05,197.01,5.07588447]
[1760370876818,11.55647521,197.05,196.97,12.69170276]
[1760370877022,0.1041086,197.06,197.0,20.8]
[1760370877023,10.87647521,197.03,197.0,20.8]
[1760370877214,10.87647521,197.01,197.0,20.8]
[1760370877520,11.55647521,197.01,197.0,20.8]
[1760370877921,11.55647521,197.01,197.0,25.87614213]
[1760370878211,0.1041086,197.06,197.0,38.74649745]
[1760370878388,0.1041086,197.06,197.01,9.24]
[1760370878591,0.1041086,197.06,197.0,38.74649745]
[1760370878805,0.1041086,197.06,197.01,9.24]
[1760370879020,0.1041086,197.06,197.0,64.1272081]
[1760370879721,0.1041086,197.06,197.0,38.56649745]
[1760370879904,10.87647521,197.04,196.94,17.77191022]
[1760370880111,11.55647521,197.04,196.94,43.16004537]
[1760370880431,11.55647521,197.04,196.95,9.24]
[1760370880721,11.55647521,197.04,196.94,43.16004537]
[1760370880722,11.55647521,197.04,196.97,20.8]
[1760370881622,0.09993342,196.98,196.97,20.8]
[1760370881813,0.09993342,196.98,196.97,30.04]
[1760370882012,0.09993342,196.98,196.97,20.8]
[1760370882210,0.10415047,196.99,196.97,26.05691526]
[1760370882435,0.09147346,197.01,196.98,0.18]
[1760370882769,0.09147346,197.01,196.97,26.38460678]
[1760370882770,0.09147346,197.01,196.99,9.92763998]
[1760370883114,0.09147346,197.01,196.99,0.18]
[1760370883332,0.10158639,197.02,196.97,63.95377975]
[1760370883528,0.68,197.01,196.97,63.95377975]
[1760370883734,0.68,197.01,196.97,43.15377975]
[1760370884033,0.68,197.0,196.97,17.76920342]
[1760370884202,10.9780616,197.02,196.97,17.76920342]
[1760370884203,0.10158639,197.02,196.97,12.69228816]
[1760370884517,10.87647521,196.98,196.96,5.07717303]
[1760370884729,11.55647521,196.97,196.95,5.07740792]
[1760370885020,10.87647521,196.95,196.92,9.24]
[1760370885225,11.55647521,196.95,196.91,20.8]
[1760370885411,10.87647521,196.99,196.91,0.18]
[1760370885801,10.87647521,196.99,196.92,9.24]
[1760370886132,10.87647521,196.99,196.91,0.18]
[1760370886332,10.87647521,196.97,196.92,27.0137152]
[1760370886540,10.87647521,196.97,196.92,17.7737152]
[1760370887240,0.68,196.97,196.92,17.7737152]
[1760370887927,0.68,196.97,196.93,9.24]
[1760370888130,0.68,196.97,196.92,43.16473693]
[1760370888326,0.10158639,197.02,196.95,20.8]
[1760370888541,0.10158639,197.02,196.99,20.8]
[1760370888814,0.10158639,197.02,196.95,20.8]
[1760370888815,10.87647521,197.0,196.95,20.8]
[1760370889014,0.72,196.99,196.95,20.8]
[1760370889227,0.72,196.98,196.92,17.7737152]
[1760370889438,10.87647521,196.96,196.92,17.7737152]
[1760370889619,11.59647521,196.96,196.92,17.7737152]
[1760370890020,11.59647521,196.96,196.93,9.24]
[1760370890263,11.59647521,196.96,196.92,12.69551086]
[1760370891429,11.59647521,196.96,196.94,5.07768863]
[1760370891632,0.72,197.0,196.94,17.77191022]
[1760370892130,0.72,197.0,196.95,9.24]
[1760370892524,0.10158639,197.02,196.97,20.8]
[1760370892725,10.87647521,197.0,196.98,9.24]
[1760370892933,0.72,196.99,196.97,20.8]
[1760370893234,10.87647521,196.98,196.94,17.77191022]
[1760370893433,10.87647521,196.96,196.94,17.77191022]
[1760370893632,11.59647521,196.95,196.94,17.77191022]
[1760370894234,10.87647521,196.94,196.87,5.07949408]
[1760370894439,10.87647521,196.92,196.87,5.07949408]
[1760370894830,0.72,196.91,196.87,5.07949408]
[1760370895316,0.72,196.91,196.88,9.24]
[1760370895516,0.72,196.91,196.86,20.8]
[1760370895735,0.72,196.95,196.86,20.98]
[1760370895916,10.87647521,196.94,196.86,20.98]
[1760370896120,0.72,196.95,196.86,20.98]
[1760370896121,0.72,196.95,196.87,20.8]
[1760370896321,10.87647521,196.97,196.87,20.98]
[1760370896548,0.72,196.97,196.87,20.98]
[1760370897339,0.72,196.97,196.88,17.77732628]
[1760370897537,0.72,196.97,196.88,27.01732628]
[1760370897729,0.72,196.97,196.91,20.8]
[1760370898641,0.72,196.97,196.92,9.24]
[1760370898844,0.72,196.97,196.92,17.7737152]
[1760370899029,10.87647521,196.95,196.92,17.7737152]
[1760370899232,11.59647521,196.95,196.92,27.0137152]
[1760370899743,11.59647521,196.95,196.92,17.7737152]
[1760370899929,11.59647521,196.95,196.92,27.0137152]
[1760370900125,11.59647521,196.95,196.89,17.77642337]
[1760370900325,20.90158639,197.02,196.86,12.69887916]
[1760370900326,10.87647521,196.93,196.86,12.69887916]
[1760370900629,10.87647521,196.91,196.86,12.69887916]
[1760370900944,10.87647521,196.89,196.86,12.69887916]
[1760370901131,0.72,196.89,196.86,12.69887916]
[1760370901331,0.72,196.89,196.86,9.24]
[1760370901743,0.0949004,196.87,196.84,17.78093882]
[1760370901945,0.0949004,196.87,196.86,9.24]
[1760370902134,0.0949004,196.87,196.86,5.0797521]
[1760370903648,0.0949004,196.87,196.86,14.3197521]
[1760370904046,0.0949004,196.87,196.86,5.0797521]
[1760370904432,0.0949004,196.87,196.86,14.3197521]
[1760370904762,0.0949004,196.87,196.86,5.0797521]
[1760370904946,0.0949004,196.87,196.86,14.3197521]
[1760370905344,0.0949004,196.87,196.86,5.0797521]
[1760370905545,0.09803512,196.89,196.86,17.95913237]
[1760370905737,0.09803512,196.89,196.87,0.18]
[1760370905938,0.81803512,196.89,196.87,79.2]
[1760370906144,0.09803512,196.89,196.87,79.2]
[1760370906939,0.09803512,196.89,196.88,9.24]
[1760370907249,0.09207309,196.9,196.88,9.24]
[1760370907250,0.09207309,196.9,196.88,88.62]
[1760370907453,0.09207309,196.9,196.89,5.2589781]
[1760370907655,0.09207309,196.9,196.89,14.4989781]
[1760370907950,0.09575757,196.92,196.91,20.8]
[1760370908357,0.81575757,196.92,196.89,17.77642337]
[1760370908955,0.72,196.91,196.87,5.07932333]
[1760370909164,0.72,196.9,196.87,5.07932333]
[1760370909460,10.87647521,196.88,196.84,14.32026823]
[1760370909672,0.72,196.87,196.85,9.24]
[1760370910661,0.72,196.86,196.84,17.78093882]
[1760370910850,0.72,196.85,196.84,5.08026823]
[1760370911564,0.72,196.87,196.84,5.08026823]
[1760370912261,0.72,196.86,196.84,14.32026823]
[1760370912439,0.72,196.86,196.84,17.78093882]
[1760370912634,10.87647521,196.89,196.84,12.70067059]
[1760370912838,11.59647521,196.89,196.84,12.70067059]
[1760370913056,0.09575757,196.92,196.85,9.24]
[1760370913265,0.72,196.88,196.84,12.70067059]
[1760370913470,0.72,196.87,196.84,12.70067059]
[1760370913662,10.87647521,196.9,196.84,12.70067059]
[1760370913968,10.87647521,196.88,196.84,12.70067059]
[1760370914264,0.72,196.88,196.85,9.24]
[1760370914447,0.72,196.88,196.84,12.70067059]
[1760370914448,0.81575757,196.92,196.84,12.70067059]
[1760370914646,0.81575757,196.92,196.86,17.77913237]
[1760370915448,0.81575757,196.92,196.87,9.24]
[1760370915760,0.81575757,196.92,196.86,17.77913237]
[1760370916070,10.87647521,196.9,196.86,5.0797521]
[1760370916376,0.09575757,196.92,196.84,20.8]
[1760370916377,10.87647521,196.88,196.84,27.02093882]
[1760370916541,10.87647521,196.88,196.84,12.70067059]
[1760370916542,0.72,196.88,196.84,12.70067059]
[1760370916742,0.72,196.91,196.84,12.70067059]
[1760370917044,11.59647521,196.9,196.84,12.70067059]
[1760370917250,0.72,196.89,196.85,9.24]
[1760370917455,0.72,196.88,196.84,12.70067059]
[1760370917881,0.72,196.88,196.85,9.24]
[1760370918855,0.72,196.88,196.86,5.0797521]
[1760370919050,0.72,196.88,196.82,21.0]
[1760370919051,0.72,196.87,196.82,0.2]
[1760370919256,15.49318018,196.86,196.82,0.2]
[1760370919455,10.87647521,196.84,196.82,0.2]
[1760370920065,0.72,196.84,196.82,0.2]
[1760370920384,11.59647521,196.88,196.82,14.52061293]
[1760370920669,0.72,196.89,196.82,27.22257411]
[1760370920872,10.87647521,196.88,196.82,27.22257411]
[1760370921058,0.72,196.88,196.82,17.98257411]
[1760370921661,0.09547363,196.83,196.82,17.98257411]
[1760370922167,0.09547363,196.83,196.82,5.28061293]
[1760370924574,0.09547363,196.83,196.82,14.52061293]
[1760370924879,0.1019706,196.84,196.82,5.96869137]
[1760370925048,0.11046108,196.9,196.86,20.8]
[1760370925250,0.11046108,196.9,196.87,9.24]
[1760370925445,0.11046108,196.9,196.87,9.42]
[1760370925651,0.11046108,196.9,196.88,0.18]
[1760370925859,0.11046108,196.9,196.88,9.24]
[1760370926059,0.11046108,196.9,196.86,0.18]
[1760370926561,0.11046108,196.9,196.85,20.8]
[1760370926747,0.11046108,196.9,196.85,20.98]
[1760370926953,0.11046108,196.9,196.86,17.95913237]
[1760370927359,0.11046108,196.9,196.87,0.18]
[1760370927559,0.11046108,196.9,196.88,9.24]
[1760370928772,0.11046108,196.9,196.87,0.18]
[1760370928974,0.11046108,196.9,196.88,5.07923608]
[1760370929274,0.11046108,196.9,196.88,14.31923608]
[1760370929768,0.10863391,196.92,196.88,14.31923608]
[1760370929769,0.10863391,196.92,196.88,38.75732628]
[1760370929994,0.72,197.02,196.9,20.8]
[1760370930155,10.87647521,197.01,196.91,0.18]
[1760370930356,0.72,197.02,196.91,20.98]
[1760370930657,0.72,197.02,196.92,0.18]
[1760370930971,10.87647521,197.03,196.96,20.8]
[1760370931472,10.87647521,197.03,196.97,9.24]
[1760370931971,31.67647521,197.01,196.9,5.0785172]
[1760370932185,10.87647521,196.99,196.9,5.0785172]
[1760370932360,10.87647521,196.97,196.9,5.0785172]
[1760370932682,0.72,196.96,196.9,5.0785172]
[1760370932868,10.87647521,196.94,196.86,17.77913237]
[1760370933178,0.72,196.93,196.86,17.77913237]
[1760370933355,0.72,196.93,196.87,9.24]
[1760370933859,0.72,196.93,196.86,17.77913237]
[1760370934178,0.72,196.93,196.88,17.77732628]
[1760370934377,10.87647521,196.97,196.88,5.07923608]
[1760370934569,4.61670497,196.94,196.82,0.2]
[1760370934757,10.87647521,196.89,196.82,5.28075103]
[1760370934958,10.87647521,196.87,196.82,0.2]
[1760370935173,15.49318018,196.85,196.8,0.2]
[1760370935466,10.87647521,196.83,196.8,0.2]
[1760370935991,10.87647521,196.81,196.8,0.2]
[1760370936474,11.59647521,196.81,196.8,0.2]
[1760370938481,10.87647521,196.79,196.73,0.2]
[1760370938678,10.87647521,196.77,196.73,0.2]
[1760370938880,15.49318018,196.77,196.73,0.2]
[1760370939062,10.87647521,196.75,196.73,0.2]
[1760370939683,11.59647521,196.74,196.73,0.2]
[1760370941791,10.97866832,196.74,196.73,0.2]
[1760370942378,11.69866832,196.74,196.73,0.2]
[1760370943584,11.66866832,196.74,196.73,0.2]
[1760370943969,10.97866832,196.74,196.73,0.2]
[1760370946084,10.97866832,196.74,196.73,5.28310882]
[1760370946587,0.10219311,196.74,196.73,5.86310882]
[1760370947176,0.10219311,196.74,196.73,15.10310882]
[1760370947485,0.09821422,196.75,196.73,15.10310882]
[1760370947692,0.09821422,196.75,196.74,9.82]
[1760370947989,0.09821422,196.75,196.74,26.46285046]
[1760370948182,0.09821422,196.75,196.74,35.70285046]
[1760370948385,0.10997942,196.77,196.74,39.16997661]
[1760370948688,0.11008322,196.82,196.75,1.08825921]
[1760370948988,0.11008322,196.82,196.76,0.58]
[1760370949493,0.11008322,196.82,196.77,0.58]
[1760370949789,0.11008322,196.82,196.78,9.82]
[1760370949990,0.11008322,196.82,196.78,5.66181725]
[1760370950184,0.11008322,196.82,196.78,14.90181725]
[1760370950385,0.11008322,196.82,196.78,5.66181725]
[1760370950581,0.11008322,196.82,196.79,0.58]
[1760370951106,0.11008322,196.82,196.78,17.78636039]
[1760370951308,0.11008322,196.82,196.8,0.58]
[1760370951600,10.87647521,196.9,196.81,20.8]
[1760370951802,10.87647521,196.9,196.82,9.82]
[1760370952002,20.8,196.94,196.84,17.78093882]
[1760370952174,11.53647521,196.93,196.84,38.58093882]
[1760370953091,10.87647521,196.93,196.84,38.58093882]
[1760370953291,15.49318018,196.91,196.84,5.08026823]
[1760370953498,25.87780468,196.94,196.79,5.08155902]
[1760370953499,10.87647521,196.87,196.79,5.08155902]
[1760370953804,10.87647521,196.85,196.79,5.08155902]
[1760370954011,10.87647521,196.85,196.75,12.70596535]
[1760370954012,15.95719802,196.83,196.75,12.70596535]
[1760370954211,15.49318018,196.85,196.75,12.70596535]
[1760370954212,10.87647521,196.81,196.75,12.70596535]
[1760370954688,10.87647521,196.84,196.76,0.58]
[1760370955206,10.87647521,196.84,196.77,9.24]
[1760370955414,9.24,196.94,196.75,12.70596535]
[1760370955415,19.99999999,196.94,196.75,12.70596535]
[1760370955597,10.87647521,196.87,196.75,13.28596535]
[1760370955794,0.66,196.86,196.75,13.28596535]
[1760370955991,10.87647521,196.85,196.79,17.78545657]
[1760370956184,10.87647521,196.88,196.79,18.36545657]
[1760370956793,10.87647521,196.88,196.8,9.24]
[1760370957106,10.87647521,196.88,196.81,9.24]
[1760370957310,10.87647521,196.88,196.82,9.24]
[1760370957516,10.87647521,196.88,196.83,5.08052634]
[1760370957844,10.87647521,196.88,196.84,9.24]
[1760370958115,0.66,196.87,196.83,5.08052634]
[1760370958414,0.66,196.87,196.83,17.78184219]
[1760370958611,0.66,196.87,196.8,25.88130081]
[1760370958808,0.66,196.87,196.8,38.58455284]
[1760370959007,0.66,196.87,196.81,9.24]
[1760370959207,0.66,196.87,196.82,9.24]
[1760370959411,0.66,196.87,196.83,9.24]
[1760370959599,0.66,196.87,196.84,9.24]
[1760370959789,0.66,196.87,196.85,9.24]
[1760370960413,10.87647521,196.9,196.8,38.58455284]
[1760370960594,0.66,196.86,196.8,38.58455284]
[1760370961312,0.66,196.86,196.81,9.22]
[1760370961520,0.66,196.86,196.8,38.58455284]
[1760370961720,0.09336967,196.83,196.82,5.08078447]
[1760370961926,0.10092564,196.84,196.82,5.66078447]
[1760370962100,0.10092564,196.84,196.83,9.8]
[1760370962305,0.09425667,196.85,196.83,9.8]
[1760370962507,0.09425667,196.85,196.84,0.58]
[1760370963297,0.09425667,196.85,196.84,9.22]
[1760370963496,0.09425667,196.85,196.82,96.98274565]
[1760370963804,0.75425667,196.85,196.82,96.98274565]
[1760370963987,0.09425667,196.85,196.82,96.98274565]
[1760370964192,0.09425667,196.85,196.83,9.22]
[1760370964606,0.09425667,196.85,196.82,96.98274565]
[1760370965109,0.09425667,196.85,196.83,0.58]
[1760370965290,0.09425667,196.85,196.82,96.98274565]
[1760370965490,0.09425667,196.85,196.84,9.22]
[1760370965691,0.09425667,196.85,196.83,5.08052634]
[1760370966122,0.09425667,196.85,196.84,9.22]
[1760370966525,0.09425667,196.85,196.83,5.08052634]
[1760370966817,0.09425667,196.85,196.84,0.58]
[1760370967420,0.09425667,196.85,196.83,5.08052634]
[1760370967787,0.66,196.84,196.78,5.08181725]
[1760370968210,0.66,196.84,196.79,9.22]
[1760370968417,0.66,196.84,196.78,5.08181725]
[1760370968617,0.66,196.84,196.8,9.22]
[1760370968926,0.09425667,196.85,196.8,0.58]
[1760370969103,0.09425667,196.85,196.78,43.19544667]
[1760370969292,0.09425667,196.85,196.81,21.38]
[1760370969706,0.09425667,196.85,196.83,5.08052634]
[1760370970317,0.09425667,196.85,196.84,9.22]
[1760370970809,0.09425667,196.85,196.83,5.08052634]
[1760370971199,0.75425667,196.85,196.84,9.22]
[1760370971393,0.66,196.84,196.83,5.08052634]
[1760370971812,0.66,196.84,196.82,5.08078447]
[1760370972314,0.66,196.84,196.82,14.30078447]
[1760370972909,0.66,196.84,196.78,25.40908628]
[1760370973109,0.09425667,196.85,196.78,104.60908628]
[1760370973424,0.09425667,196.85,196.79,9.22]
[1760370973715,0.68,196.84,196.8,9.22]
[1760370973921,0.09425667,196.85,196.81,0.58]
[1760370974124,0.09425667,196.85,196.8,211.7]
[1760370974427,0.09425667,196.85,196.8,212.28]
[1760370974732,0.09425667,196.85,196.81,9.22]
[1760370975023,0.09425667,196.85,196.81,18.36364919]
[1760370975518,0.09425667,196.85,196.82,9.22]
[1760370975723,0.09425667,196.85,196.82,79.2]
[1760370975915,0.09425667,196.85,196.83,9.22]
[1760370976117,0.09425667,196.85,196.83,5.08052634]
[1760370976423,0.09425667,196.85,196.84,9.22]
[1760370976938,0.09425667,196.85,196.83,5.08052634]
[1760370977239,0.09718371,196.86,196.84,0.58]
[1760370977418,1e-08,196.86,196.85,21.38]
[1760370977616,1e-08,196.86,196.85,30.6]
[1760370977821,0.11087019,196.9,196.85,242.3]
[1760370978041,1e-08,196.89,196.86,30.6]
[1760370978332,1e-08,196.89,196.87,14.29949408]
[1760370978511,1e-08,196.91,196.9,20.8]
[1760370978714,0.68,197.02,196.9,30.02]
[1760370978919,0.68,197.02,196.91,0.58]
[1760370979531,0.68,197.02,196.95,20.8]
[1760370979734,0.68,197.02,196.93,0.58]
[1760370980230,0.68,197.02,196.98,17.76830134]
[1760370980409,0.68,197.02,196.99,9.22]
[1760370980606,10.87647521,197.04,196.98,5.07665752]
[1760370980607,0.68,197.01,196.98,5.07665752]
[1760370980809,0.68,197.01,196.99,9.22]
[1760370981006,0.68,197.01,196.98,5.07665752]
[1760370981231,0.68,197.01,196.99,9.22]
[1760370981423,0.68,197.01,196.98,5.07665752]
[1760370981730,0.68,197.01,196.97,12.69195179]
[1760370981731,0.78076102,197.01,197.0,5.07614213]
[1760370982121,0.78076102,197.01,197.0,14.29614213]
[1760370982434,0.78076102,197.01,197.0,5.07614213]
[1760370982733,0.78076102,197.01,196.98,5.07664632]
[1760370982956,0.78076102,197.01,196.99,9.22]
[1760370983156,0.68,197.0,196.95,5.07743082]
[1760370983433,0.68,196.99,196.95,5.07743082]
[1760370983631,0.68,196.99,196.94,12.69385233]
[1760370983839,0.68,196.99,196.94,91.89385233]
[1760370984220,11.65723623,197.01,196.95,9.22]
[1760370984421,0.68,197.0,196.94,91.89385233]
[1760370984943,10.87647521,196.98,196.92,5.07820434]
[1760370985149,0.68,196.97,196.92,5.07820434]
[1760370985312,0.68,196.97,196.92,17.7737152]
[1760370985829,0.68,196.97,196.92,12.69551086]
[1760370986031,10.87647521,197.0,196.92,12.69551086]
[1760370986231,0.10076102,197.01,196.95,20.8]
[1760370986538,0.10076102,197.01,196.96,9.22]
[1760370986854,0.10076102,197.01,196.97,9.22]
[1760370987216,0.10076102,197.01,196.95,20.8]
[1760370987532,0.10076102,197.01,196.97,17.76920342]
[1760370987729,0.10076102,197.01,196.98,9.22]
[1760370987947,0.68,197.0,196.97,5.07691526]
[1760370988154,0.10076102,197.01,196.97,5.07691526]
[1760370988713,0.10076102,197.01,196.97,17.76920342]
[1760370989041,0.10076102,197.01,196.98,0.58]
[1760370989519,0.10076102,197.01,197.0,5.07614213]
[1760370989721,0.10076102,197.01,197.0,14.29614213]
[1760370989916,0.10076102,197.01,197.0,5.07614213]
[1760370990116,0.10076102,197.01,197.0,14.29614213]
[1760370990318,0.10076102,197.01,197.0,5.07614213]
[1760370990515,10.87647521,197.0,196.98,5.07665752]
[1760370990714,0.68,196.99,196.98,5.07665752]
[1760370991741,0.68,196.99,196.97,5.07691526]
[1760370991947,10.87647521,197.0,196.97,5.07691526]
[1760370992245,0.68,197.0,196.97,5.07691526]
[1760370992543,0.10076102,197.01,196.98,0.58]
[1760370992949,0.10076102,197.01,196.99,9.22]
[1760370993125,0.10076102,197.01,196.98,0.58]
[1760370993622,0.10076102,197.01,196.99,5.07639981]
[1760370994020,0.10076102,197.01,197.0,9.22]
[1760370994337,0.10076102,197.01,196.97,17.76894895]
[1760370994643,0.68,197.0,196.97,5.07666079]
[1760370994832,0.68,196.99,196.97,5.07666079]
[1760370995019,0.68,196.98,196.97,5.07666079]
[1760370995222,0.68,197.0,196.97,5.07666079]
[1760370995418,0.68,196.99,196.97,5.07666079]
[1760370995724,0.68,196.98,196.94,12.6936484]
[1760370995923,10.97723623,197.01,196.94,12.6936484]
[1760370995924,11.65723623,197.01,196.94,12.6936484]
[1760370996123,11.65723623,197.01,196.95,9.22]
[1760370996340,0.68,197.0,196.95,9.22]
[1760370996547,0.68,197.0,196.94,12.6936484]
[1760370996548,0.68,196.99,196.92,25.87820434]
[1760370996732,10.87647521,196.97,196.92,5.07820434]
[1760370997046,0.68,196.96,196.92,5.07820434]
[1760370997436,0.68,196.95,196.92,5.07820434]
[1760370997630,17.85337265,197.0,196.89,25.3939342]
[1760370997631,0.68,196.94,196.89,5.0789781]
[1760370997843,10.87647521,196.96,196.89,5.0789781]
[1760370998032,10.87647521,196.94,196.89,5.0789781]
[1760370998232,0.68,196.93,196.89,17.77642337]
[1760370998438,10.87647521,196.96,196.89,18.35642337]
[1760370998628,10.87647521,196.94,196.89,17.77642337]
[1760370998828,0.68,196.93,196.89,17.77642337]
[1760370999247,0.68,196.93,196.89,26.99642337]
[1760370999445,0.68,196.93,196.87,17.77822928]
[1760371000349,0.68,196.97,196.88,0.58]
[1760371000555,10.87647521,196.96,196.88,0.58]
[1760371001137,0.68,196.95,196.89,9.22]
[1760371001335,0.68,196.94,196.87,17.77822928]
[1760371001530,10.87647521,196.92,196.87,12.6987352]
[1760371001730,0.09697388,196.88,196.87,22.4987352]
[1760371001943,0.09697388,196.88,196.87,12.6987352]
[1760371002137,0.10027321,196.89,196.87,13.7866846]
[1760371002337,0.09709271,196.9,196.88,0.58]
[1760371002546,0.09709271,196.9,196.89,9.22]
[1760371003053,0.09709271,196.9,196.87,13.2066846]
[1760371003054,0.09709271,196.9,196.87,13.2787352]
[1760371003254,0.09709271,196.9,196.87,12.6987352]
[1760371003553,0.09709271,196.9,196.89,5.0789781]
[1760371003955,0.09709271,196.9,196.89,14.2989781]
[1760371004159,0.09709271,196.9,196.89,5.0789781]
[1760371004650,0.09709271,196.9,196.89,14.2989781]
[1760371005461,0.09709271,196.9,196.89,5.6589781]
[1760371005643,0.10295908,196.91,196.89,6.16687591]
[1760371005842,0.10456725,196.93,196.9,0.58]
[1760371006033,0.10456725,196.93,196.91,0.58]
[1760371006637,0.71,196.92,196.89,38.57642337]
[1760371006840,0.10456725,196.93,196.9,9.22]
[1760371007049,0.81456725,196.93,196.9,9.22]
[1760371007438,0.81456725,196.93,196.89,17.77642337]
[1760371007635,10.87647521,196.91,196.87,17.77822928]
[1760371007954,0.7,196.9,196.87,17.77822928]
[1760371008467,0.7,196.9,196.87,26.99822928]
[1760371008636,10.87647521,196.92,196.87,17.77822928]
[1760371008963,0.10456725,196.93,196.87,17.77822928]
[1760371009148,0.7,196.92,196.87,17.77822928]
[1760371009358,0.7,196.92,196.88,9.22]
[1760371009542,10.98104246,196.93,196.87,18.35822928]
[1760371009742,10.98104246,196.93,196.87,17.77822928]
[1760371009938,10.98104246,196.93,196.87,12.6987352]
[1760371010859,0.7,196.92,196.86,5.0797521]
[1760371011060,0.7,196.91,196.86,5.0797521]
[1760371011557,0.7,196.9,196.86,5.0797521]
[1760371011757,5.18262991,196.93,196.81,5.08104262]
[1760371011758,10.87647521,196.88,196.81,5.08104262]
[1760371011954,10.87647521,196.88,196.77,0.58]
[1760371011955,10.87647521,196.86,196.78,17.78636039]
[1760371012260,0.7,196.85,196.79,9.22]
[1760371012452,0.7,196.85,196.78,17.78636039]
[1760371012856,10.87647521,196.89,196.78,17.78636039]
[1760371013055,10.87647521,196.89,196.79,0.58]
[1760371013243,16.65550052,196.89,196.79,0.58]
[1760371013571,16.65550052,196.89,196.78,17.78636039]
[1760371013752,0.7,196.88,196.79,9.22]
[1760371014065,10.87647521,196.86,196.8,17.78455284]
[1760371014447,0.7,196.85,196.8,17.78455284]
[1760371014648,0.7,196.84,196.8,17.78455284]
[1760371014958,0.7,196.83,196.8,5.08130081]
[1760371015260,0.7,196.82,196.8,5.08130081]
[1760371015565,10.87647521,196.83,196.8,5.08130081]
[1760371015762,11.57647521,196.83,196.8,5.08130081]
[1760371018744,10.87647521,196.83,196.77,5.08207551]
[1760371018939,10.87647521,196.81,196.77,5.08207551]
[1760371019145,31.67647521,196.79,196.73,0.2]
[1760371019645,10.87647521,196.77,196.73,0.2]
[1760371020059,10.87647521,196.75,196.73,0.2]
[1760371020465,0.7,196.75,196.73,5.28306339]
[1760371020663,10.87647521,196.78,196.73,5.28306339]
[1760371020865,0.7,196.75,196.73,5.28306339]
[1760371021758,0.10915767,196.74,196.73,5.28306339]
[1760371022877,0.10915767,196.74,196.73,5.86306339]
[1760371023571,0.10091083,196.75,196.73,6.37137427]
[1760371023775,0.09935113,196.78,196.75,20.8]
[1760371024087,0.7,196.88,196.76,30.52823338]
[1760371024257,0.7,196.88,196.77,0.58]
[1760371024582,0.7,196.88,196.8,20.8]
[1760371024759,0.7,196.88,196.8,105.66130081]
[1760371024964,0.7,196.88,196.8,114.88130081]
[1760371025655,0.7,196.9,196.8,250.76277094]
[1760371025860,0.7,196.94,196.81,0.58]
[1760371026052,10.87647521,196.93,196.81,0.58]
[1760371026251,10.87647521,196.93,196.81,79.0982181]
[1760371026252,10.87647521,196.91,196.81,79.0982181]
[1760371026468,10.87647521,196.89,196.81,79.0982181]